bitfinex/quotes_ETHUSD_20250424
["timestamp","ask_amount","ask_price","bid_price","bid_amount"]
[1745535951896,1.22906682,1760.1,1759.8,5.61234796]
[1745535952204,4.22906682,1760.1,1759.9,5.68198012]
[1745535952718,4.22906682,1760.1,1759.9,5.68210061]
[1745535952892,1.22906682,1760.1,1759.9,5.68210061]
[1745535953822,1.22906682,1760.1,1759.8,5.61234796]
[1745535953999,1.22906682,1760.1,1759.8,11.29459518]
[1745535954301,1.22906682,1760.1,1759.8,5.61234796]
[1745535954505,1.22906682,1760.1,1759.9,5.68201661]
[1745535955694,1.22906682,1760.1,1759.9,5.68201301]
[1745535955895,1.22906682,1760.1,1759.9,5.68195616]
[1745535956509,0.43546682,1760.1,1759.9,5.68195616]
[1745535956711,3.0,1760.2,1760.1,5.68149536]
[1745535957413,3.0,1760.2,1760.0,5.68167815]
[1745535958840,3.0,1760.2,1760.0,11.36340601]
[1745535959042,3.0,1760.2,1760.0,5.68167815]
[1745535959344,3.42412476,1760.2,1760.0,5.68167815]
[1745535961855,3.42412476,1760.2,1760.1,5.68149536]
[1745535962057,0.7886,1760.5,1760.1,0.7737]
[1745535962244,0.7886,1760.5,1760.3,5.68081058]
[1745535962557,3.7886,1760.5,1760.3,5.68081058]
[1745535962710,4.22439831,1760.5,1760.3,5.68081058]
[1745535962912,0.43579831,1760.5,1760.4,5.68052715]
[1745535963107,4.714,1760.6,1760.4,5.68052715]
[1745535963313,3.0,1760.5,1760.3,5.68062134]
[1745535963542,3.0,1760.5,1760.4,5.68052715]
[1745535965423,3.0,1760.5,1760.2,5.68110571]
[1745535965648,8.68033022,1760.5,1760.2,5.68110571]
[1745535965927,3.0,1760.3,1760.1,5.68136362]
[1745535968661,3.0,1760.3,1760.0,5.68157362]
[1745535968868,9.48858222,1760.3,1760.0,5.68157362]
[1745535969241,5.68125321,1760.2,1759.9,5.68197387]
[1745535970579,3.8077,1760.3,1760.0,5.68151844]
[1745535971338,9.48859728,1760.3,1760.0,5.68151844]
[1745535971993,0.41907366,1760.5,1760.1,0.86561537]
[1745535972153,0.41907366,1760.5,1760.3,5.68070826]
[1745535972354,3.60990569,1760.5,1760.3,5.68070826]
[1745535972658,3.60990569,1760.5,1760.2,5.68096629]
[1745535972847,3.60990569,1760.5,1760.3,5.68082466]
[1745535973048,3.60990569,1760.5,1760.2,5.68096629]
[1745535973248,3.60990569,1760.5,1760.2,11.36194243]
[1745535973588,3.60990569,1760.5,1760.3,5.68075933]
[1745535975196,11.16145903,1760.7,1760.4,5.68052715]
[1745535975349,11.16145903,1760.7,1760.3,5.68075933]
[1745535975350,3.0,1760.6,1760.3,5.68075933]
[1745535975547,3.43513947,1760.6,1760.3,11.36141206]
[1745535975870,3.43513947,1760.6,1760.3,5.68065273]
[1745535976986,3.43513947,1760.6,1760.3,5.68063417]
[1745535977852,9.11506926,1760.6,1760.3,5.68063417]
[1745535978213,11.14272209,1760.6,1760.3,5.68063417]
[1745535979387,5.4627923,1760.6,1760.4,5.68052544]
[1745535979687,0.7886,1760.9,1760.6,5.67970458]
[1745535979892,0.7886,1760.9,1760.5,1.70549829]
[1745535980183,6.46753889,1760.9,1760.6,5.67976399]
[1745535980394,3.0,1760.8,1760.6,5.67976399]
[1745535980886,3.0,1760.8,1760.5,6.45398187]
[1745535981384,3.0,1760.8,1760.5,7.66741392]
[1745535981686,3.0,1760.8,1760.5,7.66740554]
[1745535982188,3.0,1760.8,1760.6,5.6796648]
[1745535982891,3.0,1760.8,1760.7,5.67955926]
[1745535983386,3.0,1760.8,1760.6,5.6796648]
[1745535983589,3.0,1760.8,1760.7,5.67955926]
[1745535984889,3.0,1760.8,1760.6,6.44637449]
[1745535985690,3.0,1760.8,1760.7,5.67955926]
[1745535986085,3.0,1760.8,1760.6,5.67965612]
[1745535986385,3.0,1760.8,1760.7,5.67955926]
[1745535990009,5.67798583,1761.2,1760.9,5.67876219]
[1745535990160,11.21346628,1761.3,1760.9,5.67870996]
[1745535990469,3.0,1761.1,1760.9,5.67870996]
[1745535990855,16.89133709,1761.3,1760.9,5.67870996]
[1745535991080,3.0,1761.2,1760.9,5.67870996]
[1745535991286,4.42134663,1761.2,1760.9,11.35742827]
[1745535991481,4.42134663,1761.2,1761.0,5.67841996]
[1745535991682,4.42134663,1761.2,1760.9,5.67870996]
[1745535992681,4.42134663,1761.2,1760.9,11.35740869]
[1745535992864,4.42134663,1761.2,1760.9,11.35739056]
[1745535993686,4.42134663,1761.2,1760.9,5.67869183]
[1745535994580,4.42134663,1761.2,1760.9,11.35740166]
[1745535995081,4.42134663,1761.2,1760.9,5.67869183]
[1745535995282,4.42134663,1761.2,1760.9,5.67868864]
[1745535997106,4.42134663,1761.2,1760.9,11.35740364]
[1745535997403,4.42134663,1761.2,1761.0,0.7711]
[1745535997595,4.42134663,1761.2,1761.0,6.44953941]
[1745535998102,4.42134663,1761.2,1761.0,5.67843941]
[1745535998408,4.42134663,1761.2,1760.9,6.50058864]
[1745535998797,4.42134663,1761.2,1760.9,12.17932084]
[1745535998997,4.42134663,1761.2,1760.9,12.17928279]
[1745535999419,4.42134663,1761.2,1761.0,5.67858586]
[1745536000100,4.42134663,1761.2,1760.9,6.50058864]
[1745536000315,4.42134663,1761.2,1761.0,5.67855598]
[1745536000513,4.42134663,1761.2,1760.9,6.50058864]
[1745536000812,4.42134663,1761.2,1761.0,5.67857562]
[1745536001113,4.42134663,1761.2,1760.9,12.1792804]
[1745536001280,4.42134663,1761.2,1761.0,5.67842597]
[1745536001598,4.42134663,1761.2,1761.0,5.67854357]
[1745536002214,3.0,1761.2,1761.1,5.67826926]
[1745536002414,4.712,1761.3,1761.2,5.67794685]
[1745536002714,22.5315,1761.6,1761.3,5.67751794]
[1745536002913,3.0,1761.5,1761.3,5.67751794]
[1745536004212,3.0,1761.5,1761.2,11.35549733]
[1745536004409,3.0,1761.5,1761.2,5.67771173]
[1745536004711,3.0,1761.5,1761.3,5.67746914]
[1745536005016,3.0,1761.5,1761.2,5.67771173]
[1745536005215,3.0,1761.5,1761.2,11.35543932]
[1745536006014,3.0,1761.5,1761.2,5.67771173]
[1745536006712,8.67698505,1761.5,1761.2,5.67771173]
[1745536007015,3.0,1761.5,1761.2,5.67771173]
[1745536007225,3.0,1761.5,1761.2,11.35547731]
[1745536007440,3.0,1761.5,1761.4,5.67730214]
[1745536007715,0.7525,1761.7,1761.5,5.67674187]
[1745536007884,5.5012,1761.9,1761.7,5.6763131]
[1745536008083,5.5012,1761.9,1761.7,5.67611785]
[1745536008384,0.5,1762.2,1761.9,5.67556724]
[1745536008621,0.5,1762.2,1762.0,5.67519756]
[1745536008921,0.5,1762.2,1762.0,5.67519387]
[1745536009218,0.5,1762.2,1762.1,6.46434681]
[1745536009424,0.5,1762.2,1762.1,7.3958451]
[1745536009589,0.5,1762.2,1762.1,8.702949]
[1745536010198,0.5,1762.2,1762.1,8.75968889]
[1745536010602,0.5,1762.2,1762.1,8.702949]
[1745536011029,0.5,1762.2,1762.1,8.7596886]
[1745536011235,0.5,1762.2,1762.1,13.4686886]
[1745536011439,0.5,1762.3,1762.2,6.43742477]
[1745536011729,0.5,1762.3,1762.2,8.34343215]
[1745536019403,0.5,1762.3,1762.2,8.40016518]
[1745536019819,0.5,1762.3,1762.2,8.34343215]
[1745536021642,0.5,1762.3,1762.2,8.400165]
[1745536022127,0.4048968,1762.6,1762.5,6.45085886]
[1745536022331,0.4048968,1762.6,1762.5,12.14607915]
[1745536022535,0.4048968,1762.6,1762.5,12.08935715]
[1745536022733,0.4048968,1762.6,1762.5,13.86568747]
[1745536026131,0.4048968,1762.6,1762.5,12.15708918]
[1745536026323,0.4048968,1762.6,1762.5,7.45008918]
[1745536029937,0.4048968,1762.6,1762.5,1.77633032]
[1745536030438,0.4048968,1762.6,1762.3,0.8400165]
[1745536030601,0.8108,1762.5,1762.2,5.67451731]
[1745536030801,0.8108,1762.5,1762.2,5.67449844]
[1745536030997,0.8108,1762.5,1762.2,5.67449258]
[1745536031213,0.8108,1762.5,1762.3,5.67437983]
[1745536031635,0.8108,1762.5,1762.2,6.60599087]
[1745536031839,0.8108,1762.5,1762.3,0.66059909]
[1745536032034,0.8108,1762.5,1762.3,6.33487433]
[1745536032241,0.4048968,1762.6,1762.5,5.67375886]
[1745536034241,0.4048968,1762.6,1762.5,6.48005886]
[1745536034434,0.4048968,1762.6,1762.5,6.53678615]
[1745536034629,0.4048968,1762.6,1762.5,8.32162267]
[1745536035448,0.4048968,1762.6,1762.5,8.26489538]
[1745536042632,0.4048968,1762.6,1762.5,8.32161543]
[1745536044245,0.7943,1763.2,1763.1,5.67182803]
[1745536044658,0.7943,1763.2,1763.0,5.67202552]
[1745536044848,0.7943,1763.2,1763.0,5.67194439]
[1745536045463,9.46589291,1763.2,1762.9,5.67245874]
[1745536045759,3.7943,1763.2,1763.0,5.6720985]
[1745536046469,3.7943,1763.2,1762.9,5.67245874]
[1745536047158,9.46586155,1763.2,1762.9,5.67245874]
[1745536048057,3.7943,1763.2,1762.9,5.67245874]
[1745536048260,9.46583842,1763.2,1762.9,5.67245874]
[1745536048629,3.7943,1763.2,1762.9,5.67245874]
[1745536048830,9.46581308,1763.2,1762.9,5.67245874]
[1745536049130,3.7943,1763.2,1762.9,5.67245874]
[1745536049428,9.46593451,1763.2,1762.9,5.67245874]
[1745536051565,10.97965931,1763.2,1762.8,5.67259591]
[1745536051860,10.97965931,1763.2,1762.8,5.67258558]
[1745536052361,16.65144151,1763.2,1762.8,5.67258558]
[1745536052549,16.65140077,1763.2,1762.8,5.67258558]
[1745536053063,10.97965931,1763.2,1762.9,5.67244442]
[1745536053462,16.65140313,1763.2,1762.8,5.67257932]
[1745536053961,10.97965931,1763.2,1762.8,5.67257932]
[1745536054567,10.97965931,1763.2,1762.8,11.3452256]
[1745536054749,10.97965931,1763.2,1762.9,5.67239605]
[1745536055275,5.3080248,1763.2,1762.9,11.34469303]
[1745536055476,3.7943,1763.2,1762.9,5.67229698]
[1745536055782,6.10355683,1763.6,1763.0,6.43174974]
[1745536055956,3.8154,1763.5,1763.3,5.67092192]
[1745536056157,0.8154,1763.5,1763.4,5.6708631]
[1745536056390,0.8154,1763.5,1763.3,5.67092192]
[1745536057081,0.8154,1763.5,1763.2,5.67128681]
[1745536058280,0.8154,1763.5,1763.2,11.3426029]
[1745536058489,5.67105658,1763.4,1762.8,0.8031]
[1745536058687,0.8191,1763.4,1763.1,5.67167464]
[1745536059363,0.8191,1763.4,1763.1,5.67161768]
[1745536060484,6.48998643,1763.4,1763.1,5.67161768]
[1745536061884,5.67130443,1763.3,1763.0,5.67196239]
[1745536062085,5.67197631,1763.1,1762.8,5.67260567]
[1745536062291,0.7738,1763.0,1762.8,5.67277869]
[1745536062583,0.7738,1763.0,1762.9,5.67247149]
[1745536062786,0.7738,1763.0,1762.8,11.34513464]
[1745536062956,0.7738,1763.0,1762.8,5.67256703]
[1745536065494,0.7738,1763.0,1762.8,11.34514149]
[1745536065676,0.7738,1763.0,1762.8,5.67256703]
[1745536066190,0.7738,1763.0,1762.9,5.67247149]
[1745536066394,0.7879,1763.2,1763.0,5.67214974]
[1745536066559,0.7879,1763.2,1763.0,5.67192643]
[1745536066753,3.7879,1763.3,1763.2,5.67150635]
[1745536067005,0.7879,1763.4,1763.2,5.67150635]
[1745536067360,3.0,1763.5,1763.3,5.67118471]
[1745536067559,3.8056,1763.5,1763.3,5.67118471]
[1745536068388,3.8056,1763.5,1763.2,11.34286589]
[1745536068614,3.8056,1763.5,1763.2,11.34264871]
[1745536068778,3.8056,1763.5,1763.2,5.67128917]
[1745536069512,3.8056,1763.5,1763.2,11.34258064]
[1745536069812,6.47287617,1763.4,1763.1,5.67163883]
[1745536070106,0.8019,1763.4,1763.1,5.67163883]
[1745536070422,0.8019,1763.4,1763.1,5.67160153]
[1745536071411,6.47278532,1763.4,1763.1,5.67160153]
[1745536073520,0.8019,1763.4,1763.1,5.67160153]
[1745536073699,6.472765,1763.4,1763.1,5.67160153]
[1745536074132,0.8019,1763.4,1763.1,5.67160153]
[1745536076121,6.47291151,1763.4,1763.0,10.37699497]
[1745536076302,12.14402688,1763.4,1763.0,10.37699497]
[1745536076502,6.47291151,1763.4,1763.1,5.67179971]
[1745536076721,6.47291151,1763.4,1763.0,10.37693296]
[1745536076915,6.47291151,1763.4,1763.1,5.67169179]
[1745536077524,0.8019,1763.4,1763.1,11.34334105]
[1745536077725,0.8019,1763.4,1763.1,5.67164926]
[1745536077928,0.8019,1763.4,1763.1,11.34321773]
[1745536078105,0.8019,1763.4,1763.1,5.67160772]
[1745536078307,0.8019,1763.4,1763.1,13.05183747]
[1745536078619,0.8019,1763.4,1763.1,13.05187559]
[1745536080336,6.47277188,1763.4,1763.1,7.38022975]
[1745536080537,6.47277188,1763.4,1763.0,11.41464356]
[1745536080841,0.8019,1763.4,1763.1,11.34334414]
[1745536081147,0.8019,1763.4,1763.1,5.67160217]
[1745536081316,0.8019,1763.4,1763.1,5.67160195]
[1745536081947,0.7519,1763.4,1763.1,5.67160195]
[1745536082631,0.7519,1763.4,1763.1,11.34320551]
[1745536082830,0.7519,1763.4,1763.1,5.67160195]
[1745536083345,0.7519,1763.4,1763.1,7.38022651]
[1745536084150,0.7519,1763.4,1763.2,5.67148775]
[1745536087352,0.7519,1763.4,1763.3,5.67118471]
[1745536087645,0.8288,1763.6,1763.5,5.67054153]
[1745536087847,0.8288,1763.6,1763.4,5.67071561]
[1745536088086,0.8288,1763.6,1763.3,7.35398418]
[1745536088087,0.8288,1763.6,1763.5,0.56707156]
[1745536088238,3.8288,1763.6,1763.1,9.14445239]
[1745536088563,3.8288,1763.6,1763.2,5.67141861]
[1745536088769,3.8288,1763.6,1763.1,9.14445239]
[1745536089271,9.49905506,1763.6,1763.1,9.14445239]
[1745536089473,6.4823542,1763.5,1763.1,1.70862456]
[1745536089644,6.4823542,1763.5,1763.0,4.713]
[1745536090162,6.4823542,1763.5,1763.0,10.38513054]
[1745536090369,0.8117,1763.5,1763.0,10.38513054]
[1745536090570,0.8117,1763.5,1763.1,5.67174626]
[1745536090928,0.8117,1763.5,1763.0,10.38513054]
[1745536091163,0.8117,1763.5,1763.1,1.03851305]
[1745536091976,0.8038,1763.2,1762.8,1.13454933]
[1745536092179,0.8038,1763.2,1762.8,6.80709373]
[1745536092478,0.8038,1763.2,1762.8,12.47969475]
[1745536092677,0.8038,1763.2,1762.8,6.80709373]
[1745536092976,0.8038,1763.2,1762.9,0.68070937]
[1745536093646,5.66960406,1763.8,1763.3,5.67106627]
[1745536093850,6.47487527,1763.8,1763.2,6.45743639]
[1745536094047,3.0,1763.7,1763.2,6.45743639]
[1745536094257,0.8052,1763.6,1763.1,16.98774962]
[1745536094456,0.8052,1763.6,1763.2,7.37023788]
[1745536094853,6.47542534,1763.6,1763.2,1.69877496]
[1745536095058,0.822,1763.5,1763.1,10.3845938]
[1745536095278,0.822,1763.5,1763.2,5.67149255]
[1745536095511,0.822,1763.5,1763.1,5.6715938]
[1745536095781,0.822,1763.5,1763.2,5.67144725]
[1745536096081,0.822,1763.5,1763.2,6.80575136]
[1745536096282,0.822,1763.5,1763.2,1.13430411]
[1745536096849,0.822,1763.5,1763.2,6.80557553]
[1745536098848,0.822,1763.5,1763.2,1.13430411]
[1745536099875,0.822,1763.5,1763.2,6.80580098]
[1745536100356,0.822,1763.5,1763.2,6.80579721]
[1745536101988,0.822,1763.5,1763.3,5.67118211]
[1745536102187,3.8089,1763.8,1763.5,5.67051725]
[1745536102490,0.8089,1763.8,1763.4,11.34153794]
[1745536102790,0.8089,1763.8,1763.5,5.67040289]
[1745536103010,0.8089,1763.8,1763.5,6.80451066]
[1745536103191,0.8089,1763.8,1763.5,1.13410777]
[1745536103562,0.8089,1763.8,1763.5,6.80455993]
[1745536104386,0.8089,1763.8,1763.5,1.13410777]
[1745536104892,0.8089,1763.8,1763.5,6.80464495]
[1745536105193,0.8089,1763.8,1763.5,1.13410777]
[1745536105493,0.8089,1763.8,1763.5,6.80462465]
[1745536105692,0.8089,1763.8,1763.5,1.13410777]
[1745536106088,0.8089,1763.8,1763.5,6.80443001]
[1745536106593,0.8089,1763.8,1763.6,0.680443]
[1745536107884,0.4048968,1764.4,1764.3,5.66797029]
[1745536108083,0.4048968,1764.4,1764.3,6.59946858]
[1745536108288,0.4048968,1764.4,1764.3,0.98816766]
[1745536108486,0.4048968,1764.4,1764.3,0.70987614]
[1745536108718,0.4048968,1764.4,1764.3,0.65320677]
[1745536109091,0.4048968,1764.4,1764.3,1.64137747]
[1745536109305,0.4048968,1764.4,1764.3,1.58470506]
[1745536109677,0.4048968,1764.4,1764.3,0.65320677]
[1745536109988,0.4048968,1764.4,1764.3,6.32117706]
[1745536110195,0.4048968,1764.4,1764.3,0.65320677]
[1745536112510,0.4048968,1764.4,1764.1,4.736]
[1745536113291,0.4048968,1764.4,1764.1,0.93149829]
[1745536113508,0.4048968,1764.4,1764.1,11.39268224]
[1745536113709,0.4048968,1764.4,1764.3,6.59946858]
[1745536113908,0.4048968,1764.4,1764.3,7.48583092]
[1745536114181,0.00124245,1764.8,1764.7,0.8297]
[1745536114397,0.00124245,1764.8,1764.7,6.49719829]
[1745536117041,0.00124245,1764.8,1764.7,6.5538499]
[1745536117697,0.00124245,1764.8,1764.7,6.49719829]
[1745536117912,0.00124245,1764.8,1764.7,7.14691812]
[1745536118336,0.00124245,1764.8,1764.7,7.20356975]
[1745536118936,0.00124245,1764.8,1764.7,7.14691812]
[1745536123908,0.00124245,1764.8,1764.7,5.38371983]
[1745536126032,0.00124245,1764.8,1764.7,6.31521812]
[1745536129945,0.00124245,1764.8,1764.7,7.08381812]
[1745536130143,0.00124245,1764.8,1764.7,14.23200196]
[1745536131647,0.00124245,1764.8,1764.7,13.30050367]
[1745536132157,0.00124245,1764.8,1764.7,14.23200196]
[1745536134047,0.00124245,1764.8,1764.7,13.30050367]
[1745536135123,0.00124245,1764.8,1764.7,14.23200196]
[1745536139751,0.00124245,1764.8,1764.7,7.11681812]
[1745536140651,0.00124245,1764.8,1764.7,5.41671983]
[1745536141516,0.00124245,1764.8,1764.7,5.47337773]
[1745536141917,0.00124245,1764.8,1764.7,5.41671983]
[1745536142849,0.00124245,1764.8,1764.7,4.767]
[1745536143054,0.83414245,1764.8,1764.5,4.767]
[1745536143454,0.83414245,1764.8,1764.4,1.59144515]
[1745536143750,0.83414245,1764.8,1764.5,4.767]
[1745536149679,0.8052,1764.7,1764.4,4.767]
[1745536151582,0.8052,1764.7,1763.8,0.42446412]
[1745536151748,0.789,1764.5,1764.0,5.69949829]
[1745536152545,0.789,1764.5,1764.4,0.93149829]
[1745536152751,0.00124245,1764.8,1764.4,11.36714085]
[1745536152951,0.00124245,1764.8,1764.6,1.72109829]
[1745536153154,0.00124245,1764.8,1764.6,0.93149829]
[1745536157397,0.00124245,1764.8,1764.7,6.47718555]
[1745536157616,0.00124245,1764.8,1764.7,6.53383391]
[1745536157760,0.00124245,1764.8,1764.7,0.8105]
[1745536157964,0.00124245,1764.8,1764.6,0.93149829]
[1745536158173,0.00124245,1764.8,1764.7,0.05665038]
[1745536158396,0.00124245,1764.8,1764.7,6.53383593]
[1745536158560,0.00124245,1764.8,1764.7,7.8470558]
[1745536158899,0.00124245,1764.8,1764.7,2.18037025]
[1745536159208,0.00124245,1764.8,1764.7,2.12371987]
[1745536159499,0.00124245,1764.8,1764.7,7.84705287]
[1745536163706,0.00124245,1764.8,1764.7,9.32855116]
[1745536164498,0.8043,1765.4,1765.2,6.41912871]
[1745536164499,0.005,1765.4,1765.2,6.41912871]
[1745536164696,0.005,1765.4,1765.3,6.40204086]
[1745536165008,0.005,1765.4,1765.3,5.41391287]
[1745536166512,0.7778,1765.4,1765.3,5.41391287]
[1745536167082,0.7778,1765.4,1765.3,0.64191287]
[1745536167286,3.0,1765.2,1763.9,5.5957]
[1745536167603,0.7947,1764.6,1764.0,0.93149829]
[1745536169803,6.46175295,1764.6,1764.0,0.93149829]
[1745536170316,0.7947,1764.6,1764.0,0.93149829]
[1745536170718,6.46172223,1764.6,1764.0,0.93149829]
[1745536172319,0.7947,1764.6,1764.0,0.93149829]
[1745536172692,0.7947,1764.6,1764.2,0.93149829]
[1745536173719,0.7947,1764.6,1764.0,1.48149829]
[1745536176722,0.7947,1764.6,1764.0,0.93149829]
[1745536177886,3.7951,1764.9,1764.3,0.7768]
[1745536178100,3.7951,1764.9,1764.3,5.60646359]
[1745536178419,9.46116877,1764.9,1764.3,5.60646359]
[1745536178626,9.46116877,1764.9,1764.3,5.5498]
[1745536179001,5.66651509,1764.8,1764.3,5.5498]
[1745536179323,7.17928348,1764.8,1764.3,4.773]
[1745536179633,6.42333123,1764.7,1764.3,4.773]
[1745536179795,12.0902988,1764.7,1764.3,4.773]
[1745536179987,6.42333123,1764.7,1764.3,4.773]
[1745536181811,0.7565,1764.7,1764.3,4.773]
[1745536184523,0.762,1764.6,1764.2,0.05666759]
[1745536184734,0.762,1764.6,1764.2,0.7732]
[1745536185227,5.66647658,1764.8,1764.2,0.7732]
[1745536185429,3.7996,1764.8,1764.3,0.05666601]
[1745536187837,3.7996,1764.8,1764.2,0.7732]
[1745536189945,0.8096,1765.1,1764.5,0.93149829]
[1745536190144,6.47501156,1765.1,1764.6,0.7948]
[1745536190323,3.8096,1765.1,1764.6,0.7948]
[1745536190523,0.8096,1765.1,1764.6,0.7948]
[1745536191135,6.47503984,1765.1,1764.6,0.7948]
[1745536191343,0.8096,1765.1,1764.6,0.7948]
[1745536191530,0.8096,1765.1,1764.6,1.45039554]
[1745536191842,6.47500392,1765.1,1764.6,1.45039554]
[1745536192644,0.8096,1765.1,1764.6,1.45039554]
[1745536193639,6.47511793,1765.1,1764.5,4.773]
[1745536198273,0.8096,1765.1,1764.5,4.773]
[1745536200033,6.47500534,1765.1,1764.5,4.773]
[1745536200466,0.8096,1765.1,1764.5,4.773]
[1745536201689,0.8096,1765.1,1764.6,0.7977]
[1745536202239,0.8096,1765.1,1764.6,1.45358592]
[1745536202477,6.47518155,1765.1,1764.6,0.7977]
[1745536202858,0.8096,1765.1,1764.6,0.7977]
[1745536203358,6.47501178,1765.1,1764.6,0.7977]
[1745536204240,5.66573251,1765.0,1764.6,0.7977]
[1745536204576,6.47501178,1765.1,1764.6,0.7977]
[1745536204779,6.31328371,1765.0,1764.6,0.7977]
[1745536205084,12.08474617,1764.9,1764.5,5.5853]
[1745536205265,6.41846507,1764.9,1764.5,5.5853]
[1745536205848,5.66638033,1764.8,1764.5,5.5853]
[1745536206180,5.66638033,1764.8,1764.5,4.773]
[1745536206382,6.41846507,1764.9,1764.5,4.773]
[1745536206545,6.30831664,1764.8,1764.5,4.773]
[1745536206742,6.30831664,1764.8,1764.3,0.7508]
[1745536206976,0.64184651,1764.8,1764.3,0.7508]
[1745536207184,6.41840532,1764.9,1764.3,0.7508]
[1745536207185,6.41840532,1764.9,1764.3,0.80746916]
[1745536207389,6.41840532,1764.9,1764.3,0.7508]
[1745536211455,12.08471933,1764.9,1764.3,0.7508]
[1745536212015,6.41840532,1764.9,1764.3,0.7508]
[1745536212194,12.08471745,1764.9,1764.3,0.7508]
[1745536212403,6.41840532,1764.9,1764.3,1.30878]
[1745536213092,12.08474766,1764.9,1764.3,1.30878]
[1745536213601,6.41840532,1764.9,1764.3,1.30878]
[1745536213794,12.08471198,1764.9,1764.3,1.30878]
[1745536214201,12.08468958,1764.9,1764.3,1.30878]
[1745536214402,6.41840532,1764.9,1764.3,1.30878]
[1745536215001,12.08468665,1764.9,1764.3,1.30878]
[1745536215202,7.6916241,1764.9,1764.3,1.30878]
[1745536216120,3.7522,1764.9,1764.4,0.84176573]
[1745536216421,3.0,1764.9,1764.4,0.7851]
[1745536216905,11.25259223,1765.1,1764.4,0.7851]
[1745536217110,3.0,1765.0,1764.4,0.7851]
[1745536217322,8.66572415,1765.0,1764.4,0.7851]
[1745536218418,3.0,1765.0,1764.4,0.7851]
[1745536218624,8.66585595,1765.0,1764.4,0.7851]
[1745536219563,8.66585595,1765.0,1764.4,4.83]
[1745536219689,8.66585595,1765.0,1764.5,0.8296]
[1745536220429,8.66572497,1765.0,1764.5,0.8296]
[1745536221518,3.0,1765.0,1764.5,0.8296]
[1745536223493,4.83,1765.1,1764.5,0.8296]
[1745536224437,8.66540554,1765.1,1764.5,0.8296]
[1745536224640,3.0,1765.1,1764.6,0.7969]
[1745536226033,12.59659728,1765.3,1764.6,0.85356119]
[1745536226034,5.572,1765.3,1764.6,0.85356119]
[1745536226195,3.0,1765.2,1764.8,0.771]
[1745536226402,3.005,1765.4,1764.8,0.771]
[1745536226697,8.66945977,1765.4,1764.8,0.771]
[1745536226909,10.18305905,1765.4,1764.8,0.771]
[1745536227115,4.51859928,1765.4,1764.8,0.771]
[1745536227318,10.18304242,1765.4,1764.8,0.771]
[1745536227746,4.51859928,1765.4,1764.8,0.771]
[1745536227907,0.005,1765.4,1765.0,0.7932]
[1745536231751,0.005,1765.4,1765.2,0.8122]
[1745536231909,0.005,1765.4,1765.3,0.29530816]
[1745536236067,9.60093694,1765.4,1765.3,0.29530816]
[1745536236269,11.20855714,1765.4,1765.3,0.29530816]
[1745536236431,8.66479561,1765.3,1764.8,0.7588]
[1745536237873,0.753,1765.2,1764.8,0.7588]
[1745536238672,5.66541968,1765.1,1764.8,0.7588]
[1745536238837,6.41814902,1765.2,1764.8,0.7588]
[1745536239168,0.6418149,1765.1,1764.8,0.7588]
[1745536239369,6.41814902,1765.2,1764.8,0.7588]
[1745536239773,12.08346199,1765.2,1764.8,0.7588]
[1745536239976,6.41814902,1765.2,1764.8,0.7588]
[1745536240141,12.08347808,1765.2,1764.8,0.7588]
[1745536240474,12.08347808,1765.2,1764.7,4.794]
[1745536240475,11.33122238,1765.1,1764.7,4.794]
[1745536240774,6.79890665,1765.0,1764.6,0.8288]
[1745536241345,4.13312224,1765.0,1764.6,0.8288]
[1745536242779,4.13312224,1765.0,1764.7,0.26520725]
[1745536243971,9.79893592,1765.0,1764.7,0.26520725]
[1745536245684,0.753,1765.2,1764.7,0.26520725]
[1745536245982,8.98688115,1765.4,1764.8,0.8192]
[1745536246173,8.98688115,1765.4,1764.9,0.26537403]
[1745536246349,8.98688115,1765.4,1764.8,0.8192]
[1745536246682,8.98688115,1765.4,1764.9,0.26537403]
[1745536246886,0.89868812,1765.3,1764.9,0.26537403]
[1745536247086,0.89868812,1765.3,1764.8,0.8192]
[1745536247381,6.56346272,1765.3,1764.9,0.26537403]
[1745536247582,0.89868812,1765.3,1764.8,0.8192]
[1745536247770,0.89868812,1765.3,1764.9,0.26537403]
[1745536247970,0.89868812,1765.3,1764.8,0.8192]
[1745536248165,0.89868812,1765.3,1764.9,0.26537403]
[1745536248482,6.56346564,1765.3,1764.8,0.8192]
[1745536248680,6.56346564,1765.3,1765.0,0.26513442]
[1745536248881,0.89868812,1765.3,1764.9,0.26537403]
[1745536249092,0.89868812,1765.3,1765.1,0.26489483]
[1745536249093,6.56363106,1765.3,1765.1,0.26489483]
[1745536249382,6.56363106,1765.3,1765.2,0.26465526]
[1745536249587,0.89868812,1765.3,1764.8,0.8192]
[1745536249744,14.65163846,1765.4,1764.9,0.26537403]
[1745536249948,5.66478482,1765.3,1764.8,1.38052]
[1745536250148,5.66478482,1765.3,1764.9,0.26537403]
[1745536250383,5.66478482,1765.3,1764.8,1.38052]
[1745536250551,5.66478482,1765.3,1764.9,0.26537403]
[1745536250760,7.12995744,1765.3,1764.8,1.38052]
[1745536251080,5.66519582,1765.2,1764.9,0.26537403]
[1745536251483,5.66519582,1765.2,1764.8,0.8192]
[1745536251683,5.66519582,1765.2,1765.0,0.26513442]
[1745536251991,11.32983966,1765.3,1765.1,0.26489483]
[1745536252294,5.66478482,1765.3,1764.8,0.8192]
[1745536252589,15.22856356,1765.3,1764.8,0.8192]
[1745536252783,9.56349515,1765.3,1764.9,0.26537403]
[1745536252989,9.56349515,1765.3,1764.8,0.8192]
[1745536253691,3.89871033,1765.3,1764.8,0.8192]
[1745536253990,9.56357549,1765.3,1764.9,0.26537403]
[1745536254176,9.56357549,1765.3,1764.8,0.8192]
[1745536254378,9.56357549,1765.3,1764.9,0.26517528]
[1745536254577,9.56357549,1765.3,1764.8,0.8192]
[1745536254781,9.56357549,1765.3,1764.9,0.26517528]
[1745536254972,9.56357549,1765.3,1764.8,1.38052]
[1745536255164,9.56357549,1765.3,1764.9,0.26517528]
[1745536255393,9.56357549,1765.3,1764.8,0.8192]
[1745536255684,9.56357549,1765.3,1764.9,0.26517528]
[1745536256085,9.56357549,1765.3,1764.8,0.8192]
[1745536256279,9.56357549,1765.3,1765.0,0.26493567]
[1745536256468,9.56357549,1765.3,1764.9,0.26517528]
[1745536256669,9.56357549,1765.3,1765.1,0.26469608]
[1745536256871,9.56357549,1765.3,1765.0,0.26493567]
[1745536257228,9.56357549,1765.3,1765.1,0.26469608]